[Event "Bhopal GM Open 2019"]
[Site "Bhopal"]
[Date "2019.12.21"]
[Round "1.10"]
[White "Nirnay Garg"]
[Black "Nguyen, Van Huy"]
[Result "0-1"]
[ECO "A45"]
[WhiteElo "1569"]
[BlackElo "2457"]
[Annotator "RC"]
[PlyCount "64"]
[EventDate "2019.12.21"]
[EventType "swiss"]
[EventCountry "IND"]
[SourceTitle "playchess.com"]
[Source "ChessBase"]
[SourceQuality "1"]
[TimeControl "5400+30"]

1. d4 {[%emt 0:00:00]} Nf6 {[%emt 0:00:02]} 2. Bf4 {[%emt 0:00:52]} d5 {[%emt 0:00:41]} 3. e3 {[%emt 0:01:11]} c5 {[%emt 0:00:45]} 4. c3 {[%emt 0:00:21]} Nc6 5. Nd2 {[%emt 0:00:41]} cxd4 {[%emt 0:01:31]} 6. exd4 {[%emt 0:00:19]} Bg4 {[%emt 0:00:28]} 7. Qb3 {[%emt 0:00:59]} Qc8 {[%emt 0:00:31]} 8. Ngf3 {[%emt 0:00:45]} e6 {[%emt 0:00:28]} 9. Bb5 {[%emt 0:04:10]} Nd7 {[%emt 0:05:37]} 10. O-O {[%emt 0:01:06]} Be7 {[%emt 0:00:54]} 11. Rfe1 {[%emt 0:00:57]} O-O {[%emt 0:01:30]} 12. Bd3 {[%emt 0:04:48]} Bh5 {[%emt 0:01:09]} 13. h3 {[%emt 0:04:27]} Bg6 {[%emt 0:01:56]} 14. Bxg6 {[%emt 0:02:48]} hxg6 {[%emt 0:00:17]} 15. Rac1 {[%emt 0:04:33]} Nb6 {[%emt 0:12:09]} 16. Ne5 {[%emt 0:03:00]} Nxe5 {[%emt 0:02:18]} 17. Bxe5 {[%emt 0:00:21]} Bg5 {[%emt 0:01:53]} 18. Rc2 {[%emt 0:02:01]} Bxd2 {[%emt 0:01:03]} 19. Rxd2 {[%emt 0:00:08]} Qc4 {[%emt 0:00:42]} 20. Bd6 {[%emt 0:01:58]} Rfc8 {[%emt 0:02:28]} 21. Bc5 {[%emt 0:03:58]} Qxb3 {[%emt 0:01:09]} 22. axb3 {[%emt 0:00:05]} Nd7 {[%emt 0:00:39]} 23. Be7 {[%emt 0:02:48]} a5 {[%emt 0:01:45]} 24. Ra1 {[%emt 0:02:07]} f6 {[%emt 0:02:08]} 25. Re1 {[%emt 0:01:26]} Kf7 {[%emt 0:01:12]} 26. Ba3 Ra6 {[%emt 0:02:36]} 27. Ra1 {[%emt 0:04:47]} Rb6 {[%emt 0:02:51]} 28. b4 {[%emt 0:00:54]} a4 {[%emt 0:00:20]} 29. Rb1 {[%emt 0:02:21]} Ra6 {[%emt 0:02:27]} 30. b3 {[%emt 0:01:39]} Rxc3 {[%emt 0:01:18]} 31. Rdb2 {[%emt 0:03:21]} axb3 {[%emt 0:00:52]} 32. Rxb3 {[%emt 0:00:05]} Rxa3 {[%emt 0:00:11]} 0-1

[Event "Bhopal GM Open 2019"]
[Site "Bhopal"]
[Date "2019.12.22"]
[Round "2.19"]
[White "Sapaev, Maksad"]
[Black "Aashman Gupta"]
[Result "1-0"]
[ECO "C12"]
[WhiteElo "2250"]
[BlackElo "1700"]
[Annotator "ChessBase"]
[PlyCount "193"]
[EventDate "2019.12.21"]
[EventType "swiss"]
[EventCountry "IND"]
[SourceTitle "playchess.com"]
[Source "ChessBase"]
[SourceQuality "1"]
[TimeControl "5400+30"]

1. e4 {[%emt 0:00:53]} e6 {[%emt 0:01:34]} 2. d4 {[%emt 0:00:46]} d5 {[%emt 0:00:14]} 3. Nc3 {[%emt 0:00:19]} Nf6 {[%emt 0:02:33]} 4. Bg5 {[%emt 0:00:21]} Bb4 {[%emt 0:03:17]} 5. e5 {[%emt 0:00:12]} h6 {[%emt 0:00:05]} 6. Bd2 {[%emt 0:00:18]} Bxc3 {[%emt 0:03:00]} 7. bxc3 {[%emt 0:00:09]} Ne4 {[%emt 0:00:02]} 8. Qg4 {[%emt 0:00:10]} Kf8 {[%emt 0:02:01]} 9. h4 {[%emt 0:07:14]} c5 {[%emt 0:07:01]} 10. Bd3 {[%emt 0:12:44]} Nxd2 {[%emt 0:00:55]} 11. Kxd2 {[%emt 0:00:04]} c4 {[%emt 0:00:36]} 12. Be2 {[%emt 0:00:49]} b5 {[%emt 0:08:27]} 13. Nh3 {[%emt 0:04:15]} Nc6 {[%emt 0:06:37]} 14. a3 {[%emt 0:00:46]} a5 {[%emt 0:01:45]} 15. Nf4 {[%emt 0:00:09]} Bd7 {[%emt 0:14:31]} 16. Rh3 {[%emt 0:00:54]} Ne7 {[%emt 0:11:25]} 17. Nh5 {[%emt 0:04:05]} Rg8 {[%emt 0:05:12]} 18. Qf4 {[%emt 0:04:15]} Ng6 {[%emt 0:03:36]} 19. Qg4 {[%emt 0:11:35]} Ne7 {[%emt 0:08:22]} 20. Rf3 {[%emt 0:07:42]} Nf5 {[%emt 0:02:04]} 21. Nf4 {[%emt 0:00:27]} Ke8 {[%emt 0:03:00]} 22. Nh5 {[%emt 0:06:55]} Kf8 {[%emt 0:03:35]} 23. Rf4 {[%emt 0:07:29]} Nxh4 {[%emt 0:06:39]} 24. Qxh4 {[%emt 0:03:29]} g5 {[%emt 0:00:01]} 25. Qh2 {[%emt 0:00:06]} gxf4 {[%emt 0:00:24]} 26. Nf6 {[%emt 0:00:03]} Rg6 {[%emt 0:00:33]} 27. Qxf4 {[%emt 0:00:04]} Kg7 {[%emt 0:01:09]} 28. Rh1 {[%emt 0:06:42]} Qe7 {[%emt 0:02:58]} 29. Rh3 {[%emt 0:02:02]} Rh8 {[%emt 0:01:08]} 30. Bh5 {[%emt 0:07:06]} Rg5 {[%emt 0:01:08]} 31. Rf3 {[%emt 0:01:50]} Bc6 {[%emt 0:01:06]} 32. Qh4 {[%emt 0:01:16]} Rf8 {[%emt 0:00:24]} 33. Rg3 {[%emt 0:03:58]} Rxg3 {[%emt 0:00:29]} 34. Qxg3+ {[%emt 0:00:08]} Kh8 {[%emt 0:00:02]} 35. Bf3 {[%emt 0:00:40]} Rb8 {[%emt 0:00:58]} 36. Qf4 {[%emt 0:03:29]} Kg7 {[%emt 0:00:34]} 37. Ke2 {[%emt 0:00:46]} Rh8 {[%emt 0:00:17]} 38. Bh5 {[%emt 0:01:07]} Kf8 {[%emt 0:00:26]} 39. g4 {[%emt 0:00:57]} Be8 {[%emt 0:00:44]} 40. Qf3 {[%emt 0:01:43]} Qxa3 {[%emt 0:00:36]} 41. Nxe8 {[%emt 0:00:11]} Kxe8 {[%emt 0:00:23]} 42. Qxf7+ {[%emt 0:00:06]} Kd8 {[%emt 0:00:01]} 43. Qf6+ {[%emt 0:00:10]} Kc7 {[%emt 0:00:06]} 44. Qxh8 {[%emt 0:00:20]} Qxc3 {[%emt 0:00:12]} 45. Qg7+ {[%emt 0:01:03]} Kb6 {[%emt 0:00:29]} 46. Qg6 {[%emt 0:00:35]} a4 {[%emt 0:01:20]} 47. Qxe6+ {[%emt 0:00:57]} Ka5 {[%emt 0:00:01]} 48. Qxd5 {[%emt 0:00:25]} Qxc2+ {[%emt 0:00:11]} 49. Kf3 {[%emt 0:00:19]} a3 {[%emt 0:00:51]} 50. e6 {[%emt 0:00:46]} a2 {[%emt 0:00:59]} 51. Qa8+ {[%emt 0:01:18]} Kb4 {[%emt 0:00:01]} 52. e7 {[%emt 0:00:29]} Qd1+ {[%emt 0:01:23]} 53. Kg2 {[%emt 0:00:43]} a1=Q {[%emt 0:00:12]} 54. Qxa1 {[%emt 0:00:08]} Qxa1 {[%emt 0:00:02]} 55. e8=Q {[%emt 0:00:08]} Qxd4 {[%emt 0:00:27]} 56. Qf8+ {[%emt 0:00:10]} Kb3 {[%emt 0:00:53]} 57. Qxh6 {[%emt 0:00:12]} c3 {[%emt 0:00:47]} 58. Bf7+ {[%emt 0:00:20]} Kb2 {[%emt 0:00:12]} 59. Qe6 {[%emt 0:00:11]} Qa4 {[%emt 0:01:00]} 60. Bg6 {[%emt 0:01:51]} b4 {[%emt 0:00:25]} 61. Qe2+ {[%emt 0:00:43]} c2 {[%emt 0:00:33]} 62. Qxc2+ {[%emt 0:00:28]} Qxc2 {[%emt 0:00:02]} 63. Bxc2 {[%emt 0:00:08]} Kxc2 {[%emt 0:00:01]} 64. g5 {[%emt 0:00:01]} b3 {[%emt 0:00:15]} 65. g6 {[%emt 0:00:03]} b2 {[%emt 0:00:01]} 66. g7 {[%emt 0:00:06]} b1=Q {[%emt 0:00:06]} 67. g8=Q {[%emt 0:00:03]} Qb7+ {[%emt 0:02:00]} 68. Kg3 {[%emt 0:00:10]} Kd3 69. Qg6+ {[%emt 0:00:29]} Kd4 {[%emt 0:01:28]} 70. Qd6+ {[%emt 0:00:11]} Kc4 {[%emt 0:00:34]} 71. Qf4+ {[%emt 0:00:21]} Kc5 {[%emt 0:00:17]} 72. Qe5+ {[%emt 0:00:09]} Kc4 {[%emt 0:00:26]} 73. f4 {[%emt 0:00:35]} Qh1 {[%emt 0:00:28]} 74. Kg4 {[%emt 0:00:18]} Qd1+ {[%emt 0:00:38]} 75. Kg5 {[%emt 0:00:16]} Qd8+ {[%emt 0:00:32]} 76. Qf6 {[%emt 0:01:06]} Qg8+ {[%emt 0:00:26]} 77. Qg6 {[%emt 0:00:16]} Qd8+ {[%emt 0:00:34]} 78. Kh5 {[%emt 0:00:47]} Qd1+ {[%emt 0:00:37]} 79. Qg4 {[%emt 0:00:21]} Qh1+ {[%emt 0:00:10]} 80. Kg5 {[%emt 0:00:08]} Kd5 {[%emt 0:00:55]} 81. Qh5 {[%emt 0:00:47]} Qg1+ {[%emt 0:00:30]} 82. Kf6+ {[%emt 0:00:06]} Kd6 {[%emt 0:00:25]} 83. Qe5+ {[%emt 0:00:27]} Kd7 {[%emt 0:00:25]} 84. f5 {[%emt 0:00:13]} Qh1 {[%emt 0:00:39]} 85. Qe6+ {[%emt 0:00:54]} Kd8 {[%emt 0:00:32]} 86. Qd6+ {[%emt 0:00:28]} Kc8 {[%emt 0:00:04]} 87. Kg7 {[%emt 0:00:19]} Qg1+ {[%emt 0:00:56]} 88. Kf7 {[%emt 0:00:38]} Qh1 {[%emt 0:00:32]} 89. Kg7 {[%emt 0:02:20]} Qg1+ {[%emt 0:00:17]} 90. Qg6 {[%emt 0:00:12]} Qa7+ {[%emt 0:00:23]} 91. Kg8 {[%emt 0:00:11]} Kd8 {[%emt 0:00:46]} 92. Qd6+ {[%emt 0:00:11]} Kc8 {[%emt 0:00:29]} 93. Qf8+ {[%emt 0:00:02]} Kb7 {[%emt 0:00:27]} 94. Qf7+ {[%emt 0:00:03]} Kb8 {[%emt 0:00:07]} 95. Qxa7+ {[%emt 0:00:05]} Kxa7 {[%emt 0:00:02]} 96. f6 {[%emt 0:00:06]} Kb7 {[%emt 0:00:03]} 97. f7 {[%emt 0:00:05]} 1-0

[Event "Bhopal GM Open 2019"]
[Site "Bhopal"]
[Date "2019.12.22"]
[Round "3.1"]
[White "Yakubboev, Nodirbek"]
[Black "Rathneesh R"]
[Result "1-0"]
[ECO "E32"]
[WhiteElo "2592"]
[BlackElo "2006"]
[Annotator "ChessBase"]
[PlyCount "49"]
[EventDate "2019.12.21"]
[EventType "swiss"]
[EventCountry "IND"]
[SourceTitle "playchess.com"]
[Source "ChessBase"]
[SourceQuality "1"]
[TimeControl "5400+30"]

1. c4 {[%emt 0:02:34]} Nf6 {[%emt 0:00:00]} 2. Nc3 {[%emt 0:00:28]} e6 {[%emt 0:00:36]} 3. d4 {[%emt 0:03:55]} Bb4 {[%emt 0:00:30]} 4. Qc2 {[%emt 0:01:07]} O-O {[%emt 0:00:17]} 5. Bg5 {[%emt 0:02:17]} c5 {[%emt 0:02:44]} 6. dxc5 {[%emt 0:01:26]} h6 {[%emt 0:05:50]} 7. Bh4 {[%emt 0:03:13]} Na6 {[%emt 0:03:35]} 8. e3 {[%emt 0:08:25]} Nxc5 {[%emt 0:14:59]} 9. Nge2 {[%emt 0:00:48]} g5 {[%emt 0:08:05]} 10. Bg3 {[%emt 0:00:18]} Nfe4 {[%emt 0:00:48]} 11. f3 {[%emt 0:12:09]} Nxg3 {[%emt 0:06:43]} 12. hxg3 {[%emt 0:00:10]} Qf6 {[%emt 0:01:56]} 13. O-O-O {[%emt 0:02:06]} b6 {[%emt 0:03:56]} 14. a3 {[%emt 0:06:26]} Bxc3 {[%emt 0:02:28]} 15. Qxc3 {[%emt 0:03:46]} e5 {[%emt 0:07:58]} 16. b4 {[%emt 0:10:26]} Ne6 {[%emt 0:03:22]} 17. g4 {[%emt 0:01:29]} Ng7 {[%emt 0:08:16]} 18. Ng3 {[%emt 0:01:51]} Bb7 {[%emt 0:00:38]} 19. Rxd7 {[%emt 0:01:39]} Bxf3 {[%emt 0:02:28]} 20. gxf3 {[%emt 0:02:47]} Qxf3 {[%emt 0:00:10]} 21. Rxh6 {[%emt 0:01:49]} Qxg3 {[%emt 0:04:05]} 22. Qd3 {[%emt 0:00:06]} Qe1+ {[%emt 0:00:45]} 23. Kc2 {[%emt 0:00:10]} Qf2+ {[%emt 0:00:48]} 24. Kb3 {[%emt 0:00:10]} e4 {[%emt 0:00:19]} 25. Qxe4 {[%emt 0:00:07]} 1-0

[Event "Bhopal GM Open 2019"]
[Site "Bhopal"]
[Date "2019.12.22"]
[Round "3.2"]
[White "Mahajan Ayush"]
[Black "Bogdanovich, Stanislav"]
[Result "0-1"]
[ECO "C45"]
[WhiteElo "1959"]
[BlackElo "2562"]
[Annotator "ChessBase"]
[PlyCount "80"]
[EventDate "2019.12.21"]
[EventType "swiss"]
[EventCountry "IND"]
[SourceTitle "playchess.com"]
[Source "ChessBase"]
[SourceQuality "1"]
[TimeControl "5400+30"]

1. e4 {[%emt 0:02:25]} e5 {[%emt 0:00:00]} 2. Nf3 {[%emt 0:00:31]} Nc6 {[%emt 0:00:00]} 3. d4 exd4 {[%emt 0:00:00]} 4. Nxd4 {[%emt 0:00:45]} Bc5 {[%emt 0:00:00]} 5. Nb3 {[%emt 0:01:01]} Bb6 {[%emt 0:00:03]} 6. Qe2 {[%emt 0:01:03]} a5 {[%emt 0:00:15]} 7. a4 {[%emt 0:00:35]} Nge7 {[%emt 0:00:54]} 8. Nc3 {[%emt 0:01:25]} Nb4 {[%emt 0:03:35]} 9. g3 {[%emt 0:06:52]} d5 {[%emt 0:05:14]} 10. Bg2 {[%emt 0:01:56]} d4 {[%emt 0:06:44]} 11. Nd5 {[%emt 0:00:40]} Nexd5 {[%emt 0:00:48]} 12. exd5+ {[%emt 0:01:23]} Qe7 {[%emt 0:00:32]} 13. Qxe7+ {[%emt 0:03:16]} Kxe7 {[%emt 0:01:43]} 14. c4 {[%emt 0:09:08]} Nc2+ {[%emt 0:04:19]} 15. Kd1 {[%emt 0:00:32]} Nxa1 {[%emt 0:02:24]} 16. Re1+ {[%emt 0:00:23]} Kf6 {[%emt 0:01:11]} 17. Nxa1 {[%emt 0:00:38]} Bg4+ {[%emt 0:03:12]} 18. f3 {[%emt 0:02:55]} Bd7 {[%emt 0:00:06]} 19. b3 {[%emt 0:04:38]} Rae8 {[%emt 0:03:55]} 20. Nc2 {[%emt 0:04:37]} Bf5 {[%emt 0:01:34]} 21. Rxe8 {[%emt 0:01:16]} Rxe8 {[%emt 0:02:07]} 22. Bf1 {[%emt 0:00:23]} Bc5 {[%emt 0:03:35]} 23. g4 {[%emt 0:05:57]} Bxc2+ {[%emt 0:02:57]} 24. Kxc2 {[%emt 0:00:12]} Re1 {[%emt 0:00:05]} 25. Bd3 {[%emt 0:01:17]} Rh1 {[%emt 0:00:04]} 26. Be4 {[%emt 0:05:00]} Rxh2+ {[%emt 0:03:08]} 27. Kd3 {[%emt 0:00:19]} g5 {[%emt 0:02:02]} 28. Bd2 {[%emt 0:00:31]} b6 {[%emt 0:00:38]} 29. Be1 {[%emt 0:03:47]} Rb2 {[%emt 0:01:17]} 30. Bg3 {[%emt 0:00:21]} Bd6 {[%emt 0:02:04]} 31. Bxd6 {[%emt 0:04:17]} Rxb3+ {[%emt 0:00:03]} 32. Kxd4 {[%emt 0:00:22]} cxd6 {[%emt 0:00:03]} 33. Bd3 {[%emt 0:00:45]} Ra3 {[%emt 0:00:22]} 34. Bxh7 {[%emt 0:00:24]} Rxf3 {[%emt 0:00:20]} 35. c5 {[%emt 0:00:19]} Rf4+ {[%emt 0:00:17]} 36. Kc3 {[%emt 0:01:31]} bxc5 {[%emt 0:00:12]} 37. Bf5 {[%emt 0:00:16]} Rxf5 {[%emt 0:00:32]} 38. gxf5 {[%emt 0:00:08]} g4 {[%emt 0:00:05]} 39. Kc4 {[%emt 0:00:03]} Ke5 {[%emt 0:00:30]} 40. Kb5 {[%emt 0:00:09]} Kxd5 {[%emt 0:00:07]} 0-1

[Event "Bhopal GM Open 2019"]
[Site "Bhopal"]
[Date "2019.12.22"]
[Round "3.3"]
[White "Tukhaev, Adam"]
[Black "Trivedi Karan R"]
[Result "1-0"]
[ECO "B92"]
[WhiteElo "2552"]
[BlackElo "1949"]
[Annotator "ChessBase"]
[PlyCount "77"]
[EventDate "2019.12.21"]
[EventType "swiss"]
[EventCountry "IND"]
[SourceTitle "playchess.com"]
[Source "ChessBase"]
[SourceQuality "1"]
[TimeControl "5400+30"]

1. e4 {[%emt 0:00:00]} c5 {[%emt 0:01:02]} 2. Nf3 {[%emt 0:00:00]} d6 {[%emt 0:00:12]} 3. d4 {[%emt 0:00:15]} cxd4 {[%emt 0:00:15]} 4. Nxd4 {[%emt 0:00:09]} Nf6 {[%emt 0:00:08]} 5. Nc3 {[%emt 0:00:11]} a6 {[%emt 0:00:20]} 6. Be2 {[%emt 0:06:22]} e5 {[%emt 0:00:38]} 7. Nb3 {[%emt 0:00:05]} Be7 {[%emt 0:00:13]} 8. O-O {[%emt 0:00:15]} O-O {[%emt 0:00:15]} 9. Kh1 {[%emt 0:00:02]} Nc6 {[%emt 0:09:30]} 10. f3 {[%emt 0:00:59]} Be6 {[%emt 0:02:06]} 11. Nd5 {[%emt 0:00:06]} Bxd5 {[%emt 0:02:50]} 12. exd5 {[%emt 0:00:05]} Nb8 {[%emt 0:04:05]} 13. c4 {[%emt 0:05:14]} Nbd7 {[%emt 0:00:35]} 14. Be3 {[%emt 0:00:33]} b6 {[%emt 0:01:03]} 15. f4 {[%emt 0:05:32]} Ne4 {[%emt 0:05:26]} 16. Bd3 {[%emt 0:08:58]} f5 {[%emt 0:02:23]} 17. Qc2 {[%emt 0:09:24]} Bf6 {[%emt 0:04:50]} 18. Bxe4 {[%emt 0:04:57]} fxe4 {[%emt 0:00:28]} 19. f5 {[%emt 0:02:57]} Bg5 {[%emt 0:00:53]} 20. Qxe4 {[%emt 0:07:07]} Bxe3 {[%emt 0:00:49]} 21. Qxe3 {[%emt 0:00:04]} Qh4 {[%emt 0:01:02]} 22. Nd2 {[%emt 0:00:13]} Rf6 {[%emt 0:03:27]} 23. Rf3 {[%emt 0:02:46]} Raf8 {[%emt 0:04:23]} 24. Raf1 {[%emt 0:00:13]} Qh5 {[%emt 0:01:35]} 25. Ne4 {[%emt 0:06:23]} Rh6 {[%emt 0:03:16]} 26. h3 {[%emt 0:03:00]} Nc5 {[%emt 0:00:32]} 27. Ng5 {[%emt 0:02:13]} a5 {[%emt 0:01:08]} 28. Ne6 {[%emt 0:04:21]} Rf7 {[%emt 0:01:34]} 29. Kg1 {[%emt 0:00:46]} Qh4 {[%emt 0:01:30]} 30. b3 {[%emt 0:03:14]} Rhf6 {[%emt 0:02:06]} 31. g4 {[%emt 0:03:14]} g6 {[%emt 0:03:35]} 32. fxg6 {[%emt 0:11:30]} hxg6 {[%emt 0:00:24]} 33. Rxf6 {[%emt 0:05:07]} Rxf6 {[%emt 0:00:19]} 34. Rxf6 {[%emt 0:00:05]} Qxf6 {[%emt 0:00:11]} 35. Qg5 {[%emt 0:02:10]} Qxg5 {[%emt 0:03:24]} 36. Nxg5 {[%emt 0:00:04]} Kf8 {[%emt 0:00:55]} 37. h4 {[%emt 0:00:08]} a4 {[%emt 0:02:19]} 38. bxa4 {[%emt 0:00:12]} Nxa4 {[%emt 0:00:10]} 39. Ne4 {[%emt 0:00:30]} 1-0

[Event "Bhopal GM Open 2019"]
[Site "Bhopal"]
[Date "2019.12.22"]
[Round "3.5"]
[White "Venkatesh, M.R."]
[Black "Harsh Suresh"]
[Result "1-0"]
[ECO "B23"]
[WhiteElo "2491"]
[BlackElo "1843"]
[Annotator "ChessBase"]
[PlyCount "45"]
[EventDate "2019.12.21"]
[EventType "swiss"]
[EventCountry "IND"]
[SourceTitle "playchess.com"]
[Source "ChessBase"]
[SourceQuality "1"]
[TimeControl "5400+30"]

1. e4 {[%emt 0:00:14]} c5 {[%emt 0:00:00]} 2. Nc3 {[%emt 0:00:22]} a6 {[%emt 0:00:00]} 3. g3 {[%emt 0:02:55]} b5 {[%emt 0:00:00]} 4. Bg2 {[%emt 0:00:06]} Bb7 {[%emt 0:00:05]} 5. Nge2 {[%emt 0:00:14]} e6 {[%emt 0:00:11]} 6. O-O {[%emt 0:04:20]} Nf6 {[%emt 0:01:16]} 7. d3 {[%emt 0:00:46]} b4 {[%emt 0:01:28]} 8. Na4 {[%emt 0:03:21]} d5 {[%emt 0:00:29]} 9. e5 {[%emt 0:00:09]} Nfd7 {[%emt 0:00:06]} 10. f4 {[%emt 0:00:06]} Be7 {[%emt 0:00:37]} 11. c4 {[%emt 0:01:46]} bxc3 {[%emt 0:03:22]} 12. bxc3 {[%emt 0:00:51]} Qc7 {[%emt 0:01:43]} 13. d4 {[%emt 0:00:42]} g6 {[%emt 0:05:24]} 14. g4 {[%emt 0:01:08]} h5 {[%emt 0:01:16]} 15. f5 {[%emt 0:01:41]} hxg4 {[%emt 0:15:10]} 16. fxe6 {[%emt 0:02:41]} fxe6 {[%emt 0:00:54]} 17. Nf4 {[%emt 0:00:13]} Nf8 {[%emt 0:00:09]} 18. Qxg4 {[%emt 0:00:27]} Rh4 {[%emt 0:00:12]} 19. Nxe6 {[%emt 0:00:57]} Qd7 {[%emt 0:02:02]} 20. Rxf8+ {[%emt 0:00:24]} Bxf8 {[%emt 0:00:11]} 21. Qxg6+ {[%emt 0:00:07]} Qf7 {[%emt 0:02:27]} 22. Nc7+ {[%emt 0:00:06]} Ke7 {[%emt 0:00:03]} 23. Qd6# {[%emt 0:00:05]} 1-0

[Event "Bhopal GM Open 2019"]
[Site "Bhopal"]
[Date "2019.12.22"]
[Round "3.7"]
[White "Taher, Yoseph Theolifus"]
[Black "Pawar, Harshit"]
[Result "1-0"]
[ECO "C15"]
[WhiteElo "2469"]
[BlackElo "1823"]
[Annotator "ChessBase"]
[PlyCount "106"]
[EventDate "2019.12.21"]
[EventType "swiss"]
[EventCountry "IND"]
[SourceTitle "playchess.com"]
[Source "ChessBase"]
[SourceQuality "1"]
[TimeControl "5400+30"]

1. e4 {[%emt 0:00:00]} e6 {[%emt 0:00:42]} 2. d4 {[%emt 0:00:00]} d5 {[%emt 0:00:05]} 3. Nc3 {[%emt 0:00:00]} Bb4 {[%emt 0:00:14]} 4. Nge2 {[%emt 0:00:13]} Ne7 {[%emt 0:08:51]} 5. a3 {[%emt 0:00:13]} Bxc3+ {[%emt 0:01:16]} 6. Nxc3 {[%emt 0:00:06]} O-O {[%emt 0:03:18]} 7. Bg5 {[%emt 0:04:27]} f6 {[%emt 0:07:03]} 8. Be3 {[%emt 0:00:13]} f5 {[%emt 0:01:42]} 9. f3 {[%emt 0:06:16]} Bd7 {[%emt 0:07:17]} 10. Qd2 {[%emt 0:03:01]} c6 {[%emt 0:02:39]} 11. Bd3 {[%emt 0:00:40]} Be8 {[%emt 0:02:20]} 12. O-O-O {[%emt 0:01:35]} b5 {[%emt 0:07:39]} 13. exd5 {[%emt 0:06:59]} Nxd5 {[%emt 0:06:03]} 14. Nxd5 {[%emt 0:03:03]} cxd5 {[%emt 0:02:19]} 15. g4 {[%emt 0:01:21]} Nc6 {[%emt 0:23:56]} 16. gxf5 {[%emt 0:01:26]} exf5 {[%emt 0:01:32]} 17. Bxb5 {[%emt 0:00:51]} Rb8 {[%emt 0:00:19]} 18. Bxc6 {[%emt 0:00:13]} Bxc6 {[%emt 0:00:07]} 19. Bf4 {[%emt 0:00:07]} Rb7 {[%emt 0:00:20]} 20. Rde1 {[%emt 0:00:11]} Re8 {[%emt 0:09:23]} 21. Qc3 {[%emt 0:00:49]} Bb5 {[%emt 0:01:52]} 22. b3 {[%emt 0:01:15]} Rbe7 {[%emt 0:01:39]} 23. Kb2 {[%emt 0:00:20]} Rxe1 {[%emt 0:01:01]} 24. Rxe1 {[%emt 0:01:07]} Rxe1 {[%emt 0:01:23]} 25. Qxe1 {[%emt 0:00:01]} Kf7 {[%emt 0:00:45]} 26. Be5 {[%emt 0:00:16]} h6 {[%emt 0:01:09]} 27. a4 {[%emt 0:00:18]} Bc6 {[%emt 0:00:21]} 28. Qb4 {[%emt 0:00:12]} Qd7 {[%emt 0:01:08]} 29. Qa5 {[%emt 0:00:42]} Qb7 {[%emt 0:00:42]} 30. Qd8 {[%emt 0:01:17]} Qd7 {[%emt 0:01:15]} 31. Qh8 {[%emt 0:01:08]} Kg6 {[%emt 0:00:18]} 32. Qf8 {[%emt 0:00:02]} Qb7 {[%emt 0:02:13]} 33. Kc3 {[%emt 0:00:34]} Qd7 {[%emt 0:00:14]} 34. Qg8 {[%emt 0:01:11]} Qe7 {[%emt 0:00:42]} 35. Qc8 {[%emt 0:00:23]} Bb7 {[%emt 0:01:20]} 36. Qb8 {[%emt 0:00:16]} Bc6 {[%emt 0:01:02]} 37. Qd6+ {[%emt 0:02:09]} Qxd6 {[%emt 0:01:02]} 38. Bxd6 {[%emt 0:00:04]} Kf7 {[%emt 0:00:53]} 39. Bb8 {[%emt 0:00:02]} a5 {[%emt 0:00:48]} 40. Bc7 {[%emt 0:00:04]} g5 {[%emt 0:00:17]} 41. Bxa5 {[%emt 0:00:05]} g4 {[%emt 0:00:09]} 42. fxg4 {[%emt 0:00:06]} fxg4 {[%emt 0:00:04]} 43. Bd8 {[%emt 0:00:10]} Ke8 {[%emt 0:00:09]} 44. Bh4 {[%emt 0:00:10]} Kd7 {[%emt 0:00:03]} 45. Kb4 {[%emt 0:00:04]} Kc7 {[%emt 0:00:09]} 46. c4 {[%emt 0:00:10]} dxc4 {[%emt 0:00:15]} 47. bxc4 {[%emt 0:00:08]} Bf3 {[%emt 0:00:22]} 48. d5 {[%emt 0:00:08]} h5 {[%emt 0:00:07]} 49. a5 {[%emt 0:00:05]} Bg2 {[%emt 0:00:07]} 50. Kc3 {[%emt 0:00:06]} Bf3 {[%emt 0:00:11]} 51. Kd4 {[%emt 0:00:03]} Bd1 {[%emt 0:00:11]} 52. c5 {[%emt 0:00:05]} Ba4 {[%emt 0:00:07]} 53. c6 {[%emt 0:00:04]} Kc8 {[%emt 0:00:15]} 1-0

[Event "Bhopal GM Open 2019"]
[Site "Bhopal"]
[Date "2019.12.22"]
[Round "3.9"]
[White "Mirzoev, Azer"]
[Black "Darsh Kansal"]
[Result "1-0"]
[ECO "A48"]
[WhiteElo "2457"]
[BlackElo "1793"]
[Annotator "ChessBase"]
[PlyCount "67"]
[EventDate "2019.12.21"]
[EventType "swiss"]
[EventCountry "IND"]
[SourceTitle "playchess.com"]
[Source "ChessBase"]
[SourceQuality "1"]
[TimeControl "5400+30"]

1. d4 {[%emt 0:02:33]} Nf6 {[%emt 0:00:00]} 2. Nf3 {[%emt 0:00:07]} g6 {[%emt 0:00:00]} 3. Nbd2 {[%emt 0:00:06]} Bg7 {[%emt 0:00:13]} 4. e4 {[%emt 0:00:17]} d6 {[%emt 0:00:11]} 5. c3 {[%emt 0:00:05]} O-O {[%emt 0:00:04]} 6. Bd3 {[%emt 0:00:06]} Nbd7 {[%emt 0:00:08]} 7. O-O {[%emt 0:00:08]} e5 {[%emt 0:00:10]} 8. Re1 {[%emt 0:00:21]} Re8 {[%emt 0:00:14]} 9. h3 {[%emt 0:00:12]} Nh5 {[%emt 0:11:11]} 10. Bf1 {[%emt 0:01:36]} Nf8 {[%emt 0:01:25]} 11. dxe5 {[%emt 0:03:28]} dxe5 {[%emt 0:00:37]} 12. Nc4 {[%emt 0:00:08]} Qe7 {[%emt 0:00:18]} 13. Bg5 {[%emt 0:00:39]} f6 {[%emt 0:00:54]} 14. Be3 {[%emt 0:00:03]} Ne6 {[%emt 0:02:18]} 15. Qb3 {[%emt 0:01:20]} Kh8 {[%emt 0:02:15]} 16. Rad1 {[%emt 0:00:40]} b6 {[%emt 0:01:57]} 17. Qb4 {[%emt 0:10:56]} Qxb4 {[%emt 0:04:31]} 18. cxb4 {[%emt 0:00:07]} Bb7 {[%emt 0:00:06]} 19. Ncd2 {[%emt 0:01:49]} f5 {[%emt 0:01:04]} 20. Nc4 {[%emt 0:05:32]} Bxe4 {[%emt 0:06:11]} 21. Ncxe5 {[%emt 0:00:10]} Bxf3 {[%emt 0:18:51]} 22. Nxf3 {[%emt 0:00:41]} Bxb2 {[%emt 0:00:11]} 23. Bc4 {[%emt 0:00:12]} Nhg7 {[%emt 0:02:38]} 24. Bh6 {[%emt 0:06:28]} Bf6 {[%emt 0:08:09]} 25. Rd7 {[%emt 0:03:14]} Rad8 {[%emt 0:11:58]} 26. Bxe6 {[%emt 0:15:07]} Nxe6 {[%emt 0:00:45]} 27. Rxd8 {[%emt 0:00:09]} Bxd8 {[%emt 0:00:16]} 28. Nd4 {[%emt 0:00:22]} c5 {[%emt 0:02:31]} 29. Rxe6 {[%emt 0:00:12]} Rxe6 {[%emt 0:00:16]} 30. Nxe6 {[%emt 0:00:08]} Be7 {[%emt 0:00:05]} 31. bxc5 {[%emt 0:00:09]} bxc5 {[%emt 0:00:07]} 32. Be3 {[%emt 0:00:22]} c4 {[%emt 0:00:10]} 33. Bxa7 {[%emt 0:00:08]} c3 {[%emt 0:00:10]} 34. Bd4+ {[%emt 0:00:15]} 1-0